fUST/lending_fUST_20251229
["ID","MTS","AMOUNT","RATE_DAILY","PERIOD"]
[399985367,1766977846920,-158.15196024,0.00013699,2]
[399985368,1766977846930,-260.22702899,0.00013699,2]
[399985369,1766977846940,-158.15195404,0.00013699,2]
[399985370,1766977846949,-500.48347708,0.00013699,2]
[399985371,1766977846961,-501.24768029,0.00013699,2]
[399985372,1766977846971,-500.0,0.00013699,2]
[399985373,1766977846981,-416.66707477,0.00013699,2]
[399985374,1766977846991,-158.35301618,0.00013699,2]
[399985375,1766977847001,-501.84705657,0.00013699,2]
[399985376,1766977847011,-500.0,0.00013699,2]
[399985377,1766977847021,-309.19147991,0.00013699,2]
[399985378,1766977847031,-500.38558338,0.00013699,2]
[399985379,1766977847040,-500.0,0.00013699,2]
[399985380,1766977847050,-500.14216707,0.00013699,2]
[399985381,1766977847060,-500.0,0.00013699,2]
[399985382,1766977847071,-500.0,0.00013699,2]
[399985383,1766977847080,-500.896974,0.00013699,2]
[399985384,1766977847090,-500.0,0.00013699,2]
[399985385,1766977847099,-501.80066863,0.00013699,2]
[399985386,1766977847109,-500.0,0.00013699,2]
[399985387,1766977847118,-501.22502246,0.00013699,2]
[399985388,1766977847127,-500.0,0.00013699,2]
[399985389,1766977847137,-502.23278912,0.00013699,2]
[399985390,1766977847148,-500.0,0.00013699,2]
[399985391,1766977847160,-500.0,0.00013699,2]
[399985392,1766977847170,-500.0,0.00013699,2]
[399985393,1766977847179,-540.39724992,0.00013699,2]
[399985394,1766977847189,-500.0,0.00013699,2]
[399985395,1766977847199,-500.0,0.00013699,2]
[399985396,1766977847213,-495.14946882,0.00013699,2]
[399985397,1766977847222,-500.0,0.00013699,2]
[399985398,1766977847231,-377.70168859,0.00013699,2]
[399985399,1766977847240,-500.0,0.00013699,2]
[399985400,1766977847251,-500.0,0.00013699,2]
[399985401,1766977847260,-500.0,0.00013699,2]
[399985402,1766977847270,-500.0,0.00013699,2]
[399985403,1766977847282,-454.30244105,0.00013699,2]
[399985404,1766977847291,-476.61040302,0.00013699,2]
[399985405,1766977847302,-501.36526617,0.00013699,2]
[399985406,1766977847312,-500.0,0.00013699,2]
[399985407,1766977847321,-151.0,0.00013699,2]
[399985408,1766977847332,-151.0,0.00013699,2]
[399985409,1766977847342,-434.88387303,0.00013821,2]
[399985410,1766977847352,-1000.0,0.00013821,2]
[399985411,1766977847363,-1000.0,0.00013821,2]
[399985412,1766977847373,-1060.94399129,0.00013821,2]
[399985413,1766977847385,-1000.0,0.00013821,2]
[399985414,1766977847395,-643.3619071,0.00013821,2]
[399985415,1766977847404,-203.96728712,0.00013821,2]
[399985416,1766977847415,-1001.73505477,0.00013821,2]
[399985417,1766977847426,-1004.55777745,0.00013821,2]
[399985418,1766977847435,-973.2261254,0.00013821,2]
[399985419,1766977847444,-502.45533374,0.00013821,2]
[399985420,1766977847453,-1000.0,0.00013821,2]
[399985421,1766977847463,-1106.68278511,0.00013821,2]
[399985422,1766977847472,-1000.0,0.00013821,2]
[399985423,1766977847481,-1000.0,0.00013821,2]
[399985424,1766977847490,-1002.30344595,0.00013821,2]
[399985425,1766977847499,-1000.0,0.00013821,2]
[399985426,1766977847508,-1000.0,0.00013821,2]
[399985427,1766977847517,-977.49347621,0.00013821,2]
[399985428,1766977847526,-1000.0,0.00013821,2]
[399985429,1766977847535,-501.32929324,0.00013821,2]
[399985430,1766977847544,-1000.0,0.00013821,2]
[399985431,1766977847553,-1000.0,0.00013821,2]
[399985432,1766977847562,-1000.0,0.00013821,2]
[399985433,1766977847571,-1000.0,0.00013821,2]
[399985434,1766977847581,-501.99708898,0.00013821,2]
[399985435,1766977847589,-1000.0,0.00013821,2]
[399985436,1766977847598,-1000.0,0.00013821,2]
[399985437,1766977847607,-189.52196054,0.00014115,2]
[399985438,1766977847616,-341.13952896,0.00014115,2]
[399985439,1766977847626,-203.56276972,0.00014126,2]
[399985440,1766977847635,-600.0,0.00014221,2]
[399985441,1766977847644,-500.0,0.00014246,2]
[399985442,1766977847653,-1000.0,0.00014247,2]
[399985443,1766977847662,-1000.0,0.00014247,2]
[399985444,1766977847671,-1000.0,0.00014247,2]
[399985445,1766977847680,-688.50432478,0.00014247,2]
[399985446,1766977847689,-1000.0,0.00014247,2]
[399985447,1766977847698,-1005.64558156,0.00014247,2]
[399985448,1766977847707,-1000.0,0.00014247,2]
[399985449,1766977847717,-1002.10790347,0.00014247,2]
[399985450,1766977847726,-1000.0,0.00014247,2]
[399985451,1766977847736,-1000.0,0.00014247,2]
[399985452,1766977847745,-502.28502948,0.00014247,2]
[399985453,1766977847754,-501.85498463,0.00014247,2]
[399985454,1766977847763,-502.65784605,0.00014247,2]
[399985455,1766977847771,-501.20003236,0.00014247,2]
[399985456,1766977847781,-501.21078144,0.00014247,2]
[399985457,1766977847790,-297.46506291,0.00014247,2]
[399985458,1766977847798,-1000.0,0.00014247,2]
[399985459,1766977847807,-922.18504495,0.00014247,2]
[399985460,1766977847816,-1000.0,0.00014247,2]
[399985461,1766977847825,-1000.0,0.00014247,2]
[399985462,1766977847834,-1000.0,0.00014247,2]
[399985463,1766977847843,-1000.0,0.00014247,2]
[399985464,1766977847851,-1000.0,0.00014247,2]
[399985465,1766977847860,-1001.9765436,0.00014247,2]
[399985466,1766977847870,-1000.0,0.00014247,2]
[399985467,1766977847879,-502.06210118,0.00014247,2]
[399985468,1766977847889,-1001.44970037,0.00014247,2]
[399985469,1766977847898,-1000.0,0.00014247,2]
[399985470,1766977847907,-500.45747385,0.00014247,2]
[399985471,1766977847916,-502.77436461,0.00014247,2]
[399985472,1766977847925,-502.86114255,0.00014247,2]
[399985473,1766977847934,-502.04230729,0.00014247,2]
[399985474,1766977847943,-502.21314941,0.00014247,2]
[399985475,1766977847952,-1003.40344733,0.00014247,2]
[399985476,1766977847962,-1000.0,0.00014247,2]
[399985477,1766977847971,-157.0297225,0.00014247,2]
[399985478,1766977847980,-1012.41758039,0.00014247,2]
[399985479,1766977847990,-312.99698506,0.00014247,2]
[399985480,1766977847999,-1000.0,0.00014247,2]
[399985481,1766977848008,-1000.0,0.00014247,2]
[399985482,1766977848018,-501.14587195,0.00014247,2]
[399985483,1766977848027,-1000.0,0.00014247,2]
[399985484,1766977848037,-500.77559587,0.00014247,2]
[399985485,1766977848046,-478.43041045,0.00014247,2]
[399985486,1766977848055,-500.44645462,0.00014247,2]
[399985487,1766977848066,-1000.0,0.00014247,2]
[399985488,1766977848076,-232.989493,0.00014247,2]
[399985489,1766977848085,-151.0,0.00014247,2]
[399985490,1766977848094,-1500.0,0.00014368,2]
[399985491,1766977848103,-1500.0,0.00014368,2]
[399985492,1766977848113,-1277.22673861,0.00014368,2]
[399985493,1766977848124,-1500.0,0.00014368,2]
[399985494,1766977848134,-1500.0,0.00014368,2]
[399985495,1766977848144,-1500.0,0.00014368,2]
[399985496,1766977848155,-1500.0,0.00014368,2]
[399985497,1766977848165,-1500.0,0.00014368,2]
[399985498,1766977848174,-960.06600011,0.00014368,2]
[399985499,1766977848183,-1444.6522193,0.00014368,2]
[399985500,1766977848194,-870.05854412,0.00014368,2]
[399985501,1766977848203,-1500.0,0.00014368,2]
[399985502,1766977848218,-1500.0,0.00014368,2]
[399985503,1766977848229,-550.0,0.00014368,2]
[399985504,1766977848239,-1500.0,0.00014368,2]
[399985505,1766977848251,-420.0,0.00014445,2]
[399985506,1766977848262,-183.73,0.00014445,2]
[399985507,1766977848273,-183.73,0.00014445,2]
[399985508,1766977848284,-160.0,0.00014464,2]
[399985509,1766977848293,-562.80283244,0.00014513,2]
[399985510,1766977848303,-420.0,0.0001454,2]
[399985511,1766977848313,-420.0,0.0001454,2]
[399985512,1766977848322,-420.0,0.0001454,2]
[399985513,1766977848332,-1680.0,0.00014541,2]
[399985514,1766977848344,-500.0,0.0001455,2]
[399985515,1766977848354,-420.0,0.00014588,2]
[399985516,1766977848365,-1680.0,0.00014588,2]
[399985517,1766977848375,-151.0,0.00014588,2]
[399985518,1766977848386,-900.0,0.00014768,2]
[399985519,1766977848396,-1001.26796543,0.00014795,2]
[399985520,1766977848406,-501.15023647,0.00014795,2]
[399985521,1766977848417,-1002.24364999,0.00014795,2]
[399985522,1766977848428,-501.64253518,0.00014795,2]
[399985523,1766977848437,-1005.34226326,0.00014795,2]
[399985524,1766977848448,-502.81119939,0.00014795,2]
[399985525,1766977848458,-501.4153021,0.00014795,2]
[399985526,1766977848469,-1500.0,0.00014795,2]
[399985527,1766977848479,-161.08345784,0.00014795,2]
[399985528,1766977848489,-1002.24194055,0.00014795,2]
[399985529,1766977848500,-1500.0,0.00014795,2]
[399985530,1766977848510,-1500.0,0.00014795,2]
[399985531,1766977848522,-1500.0,0.00014795,2]
[399985532,1766977848533,-1002.21480665,0.00014795,2]
[399985533,1766977848542,-501.84568332,0.00014795,2]
[399985534,1766977848552,-493.9524416,0.00014795,2]
[399985535,1766977848562,-1003.85981935,0.00014795,2]
[399985536,1766977848573,-1008.72061457,0.00014795,2]
[399985537,1766977848581,-1500.0,0.00014795,2]
[399985538,1766977848590,-516.14737324,0.00014795,2]
[399985539,1766977848599,-1198.1914158,0.00014878,2]
[399985540,1766977848608,-1002.27053933,0.00014916,2]
[399985541,1766977848618,-548.13248219,0.00014916,2]
[399985542,1766977848627,-503.45940795,0.00014916,2]
[399985543,1766977848637,-2000.0,0.00014916,2]
[399985544,1766977848647,-2000.0,0.00014916,2]
[399985545,1766977848656,-2000.0,0.00014916,2]
[399985546,1766977848665,-1003.85653812,0.00014916,2]
[399985547,1766977848674,-503.1745366,0.00014916,2]
[399985548,1766977848683,-93.2110568,0.00014916,2]
[399985549,1766977848697,-906.7889432,0.00014916,2]
[399985550,1766977848706,-352.51698979,0.00014916,2]
[399985551,1766977858450,-500.0,0.00013698,2]
[399985552,1766977858471,-500.0,0.00013698,2]
[399985553,1766977858493,-500.0,0.00013698,2]
[399985554,1766977858517,-500.0,0.00013698,2]
[399985555,1766977858540,-500.0,0.00013698,2]
[399985556,1766977858562,-500.0,0.00013698,2]
[399985558,1766977864522,500.0,0.00013273,2]
[399985559,1766977867512,505.55305045,0.00013699,2]
[399985560,1766977880800,-1000.0,0.00013821,2]
[399985561,1766977887846,-300.0,0.00013673,2]
[399985562,1766977887866,-500.0,0.00013699,2]
[399985588,1766978345894,3591.0,0.000131,2]
[399985597,1766978527118,150.0,7.9e-07,2]
[399985598,1766978528113,150.0,7.9e-07,2]
[399985599,1766978529131,150.0,7.9e-07,2]
[399985600,1766978530152,150.0,7.9e-07,2]
[399985601,1766978531244,150.0,7.9e-07,2]
[399985605,1766978610562,224.0,0.00028767,120]
[399985606,1766978747282,200.0,0.00028767,120]
[399985619,1766978808238,10000.0,0.000287,120]
[399985620,1766978824911,-500.0,0.00013273,2]
[399985621,1766978824931,-500.0,0.00013273,2]
[399985622,1766978824950,-504.13218692,0.00013273,2]
[399985623,1766978824971,-162.16248743,0.00013273,2]
[399985624,1766978824990,-471.80181198,0.00013273,2]
[399985625,1766978825013,-150.38030007,0.00013273,2]
[399985626,1766978825037,-608.0,0.00013273,2]
[399985627,1766978825059,-620.5232136,0.0001332,2]
[399985630,1766978860602,-579.4767864,0.0001332,2]
[399985631,1766978860622,-171.6476949,0.00013321,2]
[399985632,1766978860644,-308.96585082,0.00013321,2]
[399985633,1766978860665,-184.70738216,0.00013419,2]
[399985634,1766978860686,-300.0,0.00013494,2]
[399985635,1766978860708,-8455.20228572,0.00013495,2]
[399985637,1766978879291,-8000.0,0.00013495,2]
[399985638,1766978891635,-500.0,0.00013273,2]
[399985639,1766978891655,-500.0,0.00013273,2]
[399985640,1766978891676,-300.0,0.00013494,2]
[399985641,1766978891697,-7700.0,0.00013495,2]
[399985667,1766979031939,-691.70382706,0.00013492,2]
[399985670,1766979031996,-508.29617294,0.00013492,2]
[399985671,1766979032008,-88.92312265,0.00013493,2]
[399985672,1766979032021,-211.07687735,0.00013493,2]
[399985673,1766979032032,-300.0,0.00013493,2]
[399985674,1766979032042,-300.0,0.00013493,2]
[399985675,1766979032051,-300.0,0.00013493,2]
[399985676,1766979032061,-612.0,0.00013493,2]
[399985677,1766979032070,-37020.7572711,0.00013494,2]
[399985678,1766979032080,-1200.0,0.00013494,2]
[399985679,1766979032089,-2378.80629575,0.00013494,2]
[399985680,1766979032099,-574.68983736,0.00013494,2]
[399985681,1766979032108,-527.67601869,0.00013494,2]
[399985683,1766979032118,-500.0,0.00013494,2]
[399985685,1766979032128,-500.0,0.00013494,2]
[399985686,1766979032139,-628.94015348,0.00013494,2]
[399985688,1766979032151,-500.0,0.00013494,2]
[399985690,1766979032163,-500.0,0.00013494,2]
[399985691,1766979032173,-500.0,0.00013494,2]
[399985693,1766979032183,-500.0,0.00013593,2]
[399985694,1766979032194,-500.0,0.00013593,2]
[399985696,1766979032204,-500.0,0.00013593,2]
[399985697,1766979032214,-303.61982811,0.00013593,2]
[399985698,1766979032225,-500.0,0.00013593,2]
[399985699,1766979032236,-649.15440956,0.00013593,2]
[399985700,1766979032247,-591.29792383,0.00013593,2]
[399985701,1766979032259,-500.0,0.00013593,2]
[399985702,1766979032271,-500.0,0.00013593,2]
[399985703,1766979032282,-500.0,0.00013593,2]
[399985704,1766979032295,-500.0,0.00013593,2]
[399985705,1766979032306,-500.0,0.00013593,2]
[399985706,1766979032319,-500.0,0.00013593,2]
[399985707,1766979032330,-500.0,0.00013593,2]
[399985708,1766979032342,-500.0,0.00013593,2]
[399985709,1766979032353,-500.0,0.00013593,2]
[399985710,1766979032365,-500.0,0.00013593,2]
[399985711,1766979032378,-200.0,0.00013593,2]
[399985712,1766979032392,-289.4,0.00013596,2]
[399985713,1766979032404,-300.0,0.00013673,2]
[399985714,1766979032415,-500.0,0.00013698,2]
[399985715,1766979032427,-302.87133682,0.00013698,2]
[399985716,1766979032438,-500.0,0.00013698,2]
[399985717,1766979032449,-500.0,0.00013698,2]
[399985718,1766979032460,-577.12542662,0.00013698,2]
[399985719,1766979032472,-500.0,0.00013698,2]
[399985720,1766979032484,-515.15733931,0.00013698,2]
[399985721,1766979032496,-500.0,0.00013698,2]
[399985722,1766979032507,-500.0,0.00013698,2]
[399985723,1766979032517,-500.0,0.00013698,2]
[399985724,1766979032529,-500.0,0.00013698,2]
[399985725,1766979032540,-460.536719,0.00013699,2]
[399985726,1766979032551,-1000.0,0.00013699,2]
[399985727,1766979032564,-426.532678,0.00013699,2]
[399985728,1766979032578,-200.62714564,0.00013699,2]
[399985729,1766979032591,-503.68089078,0.00013699,2]
[399985730,1766979032603,-500.0,0.00013699,2]
[399985731,1766979032614,-500.0,0.00013699,2]
[399985732,1766979032626,-500.0,0.00013821,2]
[399985733,1766979032638,-697.09357183,0.00013821,2]
[399985734,1766979032649,-365.81616992,0.00014015,2]
[399985735,1766979032659,-388.7674501,0.00014015,2]
[399985736,1766979032672,-269.70165575,0.00014015,2]
[399985737,1766979032683,-686.92319353,0.00014015,2]
[399985750,1766979038025,-483.6885502,0.00014015,2]
[399985751,1766979038037,-171.31475209,0.0001412,2]
[399985752,1766979038046,-684.57374936,0.0001412,2]
[399985753,1766979038056,-367.5498342,0.00014178,2]
[399985754,1766979038066,-183.9666937,0.00014178,2]
[399985755,1766979038075,-155.530342,0.00014178,2]
[399985756,1766979038085,-390.6952985,0.00014178,2]
[399985757,1766979038094,-747.7271942,0.000142,2]
[399985758,1766979038104,-599.3589821,0.000142,2]
[399985759,1766979038113,-306.92100719,0.00014221,2]
[399985760,1766979038123,-448.59290365,0.00014247,2]
[399985761,1766979038135,-551.40709635,0.00014247,2]
[399985762,1766979038143,-338.37290365,0.00014247,2]
[399985763,1766979038158,-661.62709635,0.00014247,2]
[399985764,1766979038168,-247.3190145,0.00014256,2]
[399985765,1766979038188,-1194.716653,0.000143,2]
[399985766,1766979038198,-418.48080763,0.00014552,2]
[399985767,1766979038208,-418.48080761,0.00014564,2]
[399985768,1766979038218,-418.48080761,0.00014576,2]
[399985769,1766979038228,-418.48080761,0.00014588,2]
[399985770,1766979038239,-418.48080761,0.000146,2]
[399985771,1766979038249,-2478.62329452,0.00014616,2]
[399985772,1766979038260,-461.67526834,0.00014643,2]
[399985773,1766979038270,-168.3888056,0.00014643,2]
[399985774,1766979038280,-250.0,0.00014643,2]
[399985775,1766979038290,-500.0,0.00014643,2]
[399985776,1766979038299,-151.0,0.00014643,2]
[399985777,1766979038309,-250.0,0.00014643,2]
[399985778,1766979038319,-500.0,0.00014643,2]
[399985779,1766979038329,-250.0,0.00014643,2]
[399985780,1766979038341,-500.0,0.00014643,2]
[399985781,1766979038351,-250.0,0.00014643,2]
[399985782,1766979038360,-500.0,0.00014643,2]
[399985783,1766979038370,-1000.0,0.00014643,2]
[399985784,1766979038379,-250.0,0.00014643,2]
[399985785,1766979038389,-670.70315115,0.00014643,2]
[399985786,1766979038399,-500.0,0.00014643,2]
[399985787,1766979038409,-250.0,0.00014643,2]
[399985788,1766979038419,-500.0,0.00014643,2]
[399985789,1766979038429,-262.5039666,0.00014643,2]
[399985790,1766979038439,-500.0,0.00014643,2]
[399985791,1766979038448,-151.0,0.00014643,2]
[399985792,1766979038458,-500.0,0.00014643,2]
[399985793,1766979038467,-151.0,0.00014643,2]
[399985794,1766979038477,-500.0,0.00014643,2]
[399985795,1766979038488,-151.0,0.00014643,2]
[399985796,1766979038497,-500.0,0.00014643,2]
[399985797,1766979038506,-151.0,0.00014643,2]
[399985798,1766979038517,-151.0,0.00014643,2]
[399985799,1766979038526,-500.0,0.00014643,2]
[399985800,1766979038535,-151.0,0.00014643,2]
[399985801,1766979038545,-500.0,0.00014643,2]
[399985802,1766979038554,-2230.315306,0.00014643,2]
[399985803,1766979038563,-151.0,0.00014643,2]
[399985804,1766979038572,-500.0,0.00014643,2]
[399985805,1766979038584,-151.0,0.00014643,2]
[399985806,1766979038594,-500.0,0.00014643,2]
[399985807,1766979038604,-151.0,0.00014643,2]
[399985808,1766979038614,-500.0,0.00014643,2]
[399985809,1766979038623,-151.0,0.00014643,2]
[399985810,1766979038633,-151.0,0.00014643,2]
[399985811,1766979038643,-500.0,0.00014643,2]
[399985812,1766979038654,-151.0,0.00014643,2]
[399985813,1766979038664,-500.0,0.00014643,2]
[399985814,1766979038673,-151.0,0.00014643,2]
[399985815,1766979038683,-151.0,0.00014643,2]
[399985816,1766979038693,-151.0,0.00014643,2]
[399985817,1766979038703,-151.0,0.00014643,2]
[399985818,1766979038712,-151.0,0.00014643,2]
[399985819,1766979038721,-151.0,0.00014643,2]
[399985820,1766979038730,-2165.4134793,0.00014673,2]
[399985821,1766979038740,-1506.6325521,0.00014673,2]
[399985822,1766979038750,-10000.0,0.00014698,2]
[399985823,1766979038759,-84676.96160871,0.000147,2]
[399986283,1766979044611,-600.47496922,0.000147,2]
[399986402,1766979045882,-11525.55691342,0.000147,2]
[399986473,1766979046601,-950.13,0.000147,2]
[399986740,1766979176536,150.0,6.767e-05,2]
[399986745,1766979241363,150.0,6.809e-05,2]
[399986749,1766979430788,164.0,0.000287,120]
[399986758,1766979604480,153.36894583,0.00028767,120]
[399986766,1766979692287,210.95661222,0.00012648,2]
[399986767,1766979695231,379.72190199,0.00012648,2]
[399986768,1766979698502,675.0611591,0.00012648,2]
[399986769,1766979701249,493.46970847,0.00012743,2]
[399986773,1766979866324,3776.26814514,0.00013172,2]
[399986774,1766979884588,150.0,6.882e-05,2]
[399986775,1766979884989,150.0,7.21e-05,2]
[399986776,1766979885380,150.0,7.537e-05,2]
[399986777,1766979885833,150.0,7.865e-05,2]
[399986902,1766980196086,234.90979691,0.00012743,2]
[399986904,1766980199082,506.38340768,0.00012743,2]
[399986924,1766980231899,-150.577059,0.00013273,2]
[399986926,1766980231908,-232.22822366,0.00013273,2]
[399986928,1766980231917,-83.09305297,0.00013273,2]
[399986932,1766980232006,-420.45604459,0.00013273,2]
[399986933,1766980232015,-166.52831803,0.00013273,2]
[399986934,1766980232024,-608.0,0.00013273,2]
[399986935,1766980232034,-340.84144496,0.00013414,2]
[399986937,1766980232044,-1482.6279784,0.00013599,2]
[399986982,1766980238079,-215.07581535,0.00013599,2]
[399986983,1766980238089,-500.0,0.00013696,2]
[399986985,1766980238098,-340.57458399,0.00013696,2]
[399986988,1766980238117,-500.0,0.00013696,2]
[399986989,1766980238127,-500.0,0.00013696,2]
[399986991,1766980238137,-141.40560066,0.00013696,2]
[399986993,1766980238148,-358.59439934,0.00013696,2]
[399986994,1766980238158,-500.0,0.00013696,2]
[399986995,1766980238167,-213.8279946,0.00013696,2]
[399986996,1766980238224,-286.1720054,0.00013696,2]
[399986997,1766980238233,-500.0,0.00013696,2]
[399986999,1766980238243,-500.0,0.00013696,2]
[399987002,1766980238476,-500.0,0.00013696,2]
[399987003,1766980238486,-298.25743206,0.00013696,2]
[399987007,1766980240238,-198.45026011,0.00013696,2]
[399987008,1766980240248,-500.0,0.00013696,2]
[399987009,1766980240258,-500.0,0.00013696,2]
[399987010,1766980240267,-500.0,0.00013696,2]
[399987011,1766980240278,-500.0,0.00013696,2]
[399987012,1766980240288,-128.29974074,0.00013696,2]
[399987017,1766980240440,-213.39523265,0.00013696,2]
[399987030,1766980244994,-158.30502661,0.00013696,2]
[399987031,1766980245004,-347.66001705,0.00013696,2]
[399987032,1766980245017,-500.0,0.00013696,2]
[399987033,1766980245027,-582.01598492,0.00013696,2]
[399987034,1766980245036,-300.0,0.00013696,2]
[399987035,1766980245046,-300.0,0.00013696,2]
[399987036,1766980245058,-1200.0,0.00013696,2]
[399987037,1766980245067,-300.0,0.00013696,2]
[399987038,1766980245077,-300.0,0.00013696,2]
[399987039,1766980245087,-28544.31566991,0.00013697,2]
[399987040,1766980245096,-1200.0,0.00013697,2]
[399987041,1766980245105,-502.34601326,0.00013699,2]
[399987043,1766980245115,-502.77112496,0.00013699,2]
[399987044,1766980245126,-326.4396563,0.00013699,2]
[399987045,1766980245137,-715.13166899,0.00013908,7]
[399987046,1766980245147,-277.45373748,0.00014015,2]
[399987047,1766980245157,-317.08998569,0.00014015,2]
[399987048,1766980245168,-599.3589822,0.000142,2]
[399987049,1766980245177,-599.3589821,0.000142,2]
[399987050,1766980245186,-599.3589821,0.000143,2]
[399987051,1766980245196,-2230.315306,0.00014381,2]
[399987052,1766980245205,-500.0,0.00014417,2]
[399987053,1766980245215,-150.0,0.00014417,2]
[399987054,1766980245224,-150.0,0.00014417,2]
[399987055,1766980245234,-2478.62329452,0.00014425,2]
[399987056,1766980245243,-500.0,0.00014498,2]
[399987057,1766980245252,-209.89990812,0.000145,2]
[399987058,1766980245261,-150.0,0.00014554,2]
[399987059,1766980245270,-500.0,0.00014554,2]
[399987060,1766980245281,-170.24007849,0.00014554,2]
[399987061,1766980245290,-151.0,0.00014582,2]
[399987062,1766980245300,-500.0,0.00014582,2]
[399987063,1766980245309,-500.0,0.00014582,2]
[399987064,1766980245319,-500.0,0.00014582,2]
[399987065,1766980245329,-500.0,0.00014582,2]
[399987066,1766980245338,-500.0,0.00014582,2]
[399987067,1766980245347,-168.3888056,0.00014582,2]
[399987068,1766980245356,-500.0,0.00014582,2]
[399987069,1766980245366,-500.0,0.00014582,2]
[399987070,1766980245375,-500.0,0.00014582,2]
[399987071,1766980245384,-500.0,0.00014582,2]
[399987072,1766980245395,-461.67526834,0.00014582,2]
[399987073,1766980245405,-500.0,0.00014582,2]
[399987074,1766980245415,-500.0,0.00014582,2]
[399987075,1766980245424,-500.0,0.00014582,2]
[399987076,1766980245434,-500.0,0.00014582,2]
[399987077,1766980245443,-151.62141299,0.00014582,2]
[399987078,1766980245453,-500.0,0.00014582,2]
[399987079,1766980245463,-500.0,0.00014582,2]
[399987080,1766980245473,-500.0,0.00014582,2]
[399987081,1766980245482,-500.0,0.00014582,2]
[399987082,1766980245492,-500.0,0.0001459,2]
[399987083,1766980245502,-500.0,0.0001459,2]
[399987084,1766980245512,-500.0,0.0001459,2]
[399987085,1766980245523,-52141.89345997,0.00014591,2]
[399987087,1766980245532,-1279.0039826,0.000146,2]
[399987088,1766980245542,-326.97296825,0.0001464,7]
[399987090,1766980245551,-203.12300422,0.00014691,2]
[399987091,1766980245561,-413.70308672,0.00014691,2]
[399987092,1766980245570,-2375.6415057,0.00014692,2]
[399987093,1766980245581,-380.1635314,0.00014692,2]
[399987094,1766980245590,-1000.0,0.00014699,2]
[399987095,1766980245601,-1000.0,0.00014699,2]
[399987096,1766980245611,-1000.0,0.00014699,2]
[399987097,1766980245620,-1000.0,0.00014699,2]
[399987098,1766980245630,-1000.0,0.00014699,2]
[399987099,1766980245640,-1000.0,0.00014699,2]
[399987100,1766980245651,-1000.0,0.00014699,2]
[399987101,1766980245660,-1004.30411501,0.00014699,2]
[399987102,1766980245670,-151.0,0.000147,2]
[399987103,1766980245679,-151.0,0.000147,2]
[399987104,1766980245697,-151.0,0.000147,2]
[399987105,1766980245708,-151.0,0.000147,2]
[399987106,1766980245718,-151.0,0.000147,2]
[399987107,1766980245728,-151.0,0.000147,2]
[399987108,1766980245738,-151.0,0.000147,2]
[399987110,1766980245747,-337.93922816,0.000147,2]
[399987111,1766980245756,-912.92938636,0.000147,2]
[399987112,1766980245766,-500.0,0.000147,2]
[399987113,1766980245775,-399.23931146,0.00014753,2]
[399987114,1766980245785,-456.27349881,0.00014753,2]
[399987115,1766980245796,-211.83725286,0.00014753,2]
[399987117,1766980245807,-381.30705516,0.00014753,2]
[399987118,1766980245817,-677.87920917,0.00014753,2]
[399987120,1766980245829,-2312.83697232,0.00014929,2]
[399987122,1766980245839,-480.47210892,0.00015,2]
[399987123,1766980245851,-165.0,0.00015,2]
[399987125,1766980245861,-420.0,0.00015009,2]
[399987126,1766980245871,-342.0,0.00015009,2]
[399987127,1766980245882,-420.0,0.00015009,2]
[399987128,1766980245892,-420.0,0.00015009,2]
[399987129,1766980245903,-1680.0,0.0001501,2]
[399987130,1766980245914,-410.92,0.00015015,2]